fUST/lending_fUST_20240813
["ID","MTS","AMOUNT","RATE_DAILY","PERIOD"]
[334709700,1723494638822,-500.0,0.00014629,2]
[334709701,1723494638831,-500.0,0.00014629,2]
[334709702,1723494638841,-500.0,0.00014629,2]
[334709703,1723494638850,-500.0,0.00014629,2]
[334709704,1723494638859,-500.0,0.00014629,2]
[334709705,1723494638868,-500.0,0.00014629,2]
[334709706,1723494638879,-500.0,0.00014629,2]
[334709707,1723494638889,-500.0,0.00014629,2]
[334709708,1723494638898,-500.0,0.00014629,2]
[334709709,1723494638907,-500.0,0.00014629,2]
[334709710,1723494638917,-306.97438786,0.00014639,2]
[334709711,1723494638926,-200.31590464,0.00014639,2]
[334709712,1723494638935,-500.0,0.00014639,2]
[334709713,1723494638945,-227.7453134,0.00014639,2]
[334709714,1723494638954,-500.0,0.00014639,2]
[334709715,1723494638963,-500.0,0.00014639,2]
[334709716,1723494638973,-500.0,0.00014639,2]
[334709717,1723494638983,-500.0,0.00014639,2]
[334709718,1723494638993,-500.0,0.00014639,2]
[334709719,1723494639002,-432.63818022,0.00014639,2]
[334709720,1723494639011,-500.0,0.00014639,2]
[334709721,1723494639020,-500.0,0.00014639,2]
[334709722,1723494639029,-500.0,0.00014639,2]
[334709723,1723494639038,-500.0,0.00014639,2]
[334709724,1723494639047,-500.0,0.00014639,2]
[334709725,1723494639056,-500.0,0.00014639,2]
[334709726,1723494639066,-500.0,0.00014639,2]
[334709727,1723494639075,-500.0,0.00014639,2]
[334709728,1723494639084,-500.0,0.00014639,2]
[334709729,1723494639093,-500.0,0.00014639,2]
[334709730,1723494639102,-500.0,0.00014639,2]
[334709731,1723494639110,-400.0,0.00014639,2]
[334709732,1723494639120,-500.0,0.00014639,2]
[334709733,1723494639130,-500.0,0.00014639,2]
[334709734,1723494639140,-500.0,0.00014639,2]
[334709735,1723494639149,-500.0,0.00014639,2]
[334709736,1723494639158,-500.0,0.0001464,2]
[334709737,1723494639168,-500.0,0.0001464,2]
[334709738,1723494639178,-500.0,0.0001464,2]
[334709739,1723494639187,-1322.88,0.0001464,2]
[334709740,1723494639197,-804.97,0.0001464,2]
[334709741,1723494639209,-5441.69174231,0.0001464,2]
[334709742,1723494639218,-5441.69174231,0.00014641,2]
[334709743,1723494639227,-500.0,0.00014641,2]
[334709744,1723494639239,-2325.05,0.00014641,2]
[334709745,1723494639249,-500.0,0.00014641,2]
[334709746,1723494639258,-8081.26,0.00014641,2]
[334709747,1723494639268,-881.04,0.00014641,2]
[334709748,1723494639283,-1430.3,0.00014641,2]
[334709749,1723494639293,-16325.0752269,0.00014641,2]
[334709750,1723494639302,-10883.3834846,0.00014642,2]
[334709751,1723494639312,-500.0,0.0001465,2]
[334709752,1723494639321,-500.0,0.0001465,2]
[334709753,1723494639331,-704.46,0.0001465,2]
[334709754,1723494639339,-500.0,0.0001465,2]
[334709755,1723494639349,-500.0,0.0001465,2]
[334709756,1723494639358,-284.84680017,0.0001465,2]
[334709757,1723494639367,-626.51,0.0001465,2]
[334709758,1723494639377,-500.0,0.0001465,2]
[334709759,1723494639387,-761.33,0.0001465,2]
[334709760,1723494639398,-534.17437031,0.0001465,2]
[334709761,1723494639409,-500.0,0.0001465,2]
[334709762,1723494639419,-907.73,0.0001465,2]
[334709763,1723494639429,-500.0,0.0001465,2]
[334709764,1723494639440,-500.0,0.0001465,2]
[334709765,1723494639450,-500.0,0.0001465,2]
[334709766,1723494639462,-500.0,0.0001465,2]
[334709767,1723494639472,-500.0,0.0001465,2]
[334709768,1723494639481,-730.93,0.0001465,2]
[334709769,1723494639490,-580.79,0.0001465,2]
[334709770,1723494639500,-984.2,0.0001465,2]
[334709771,1723494639509,-953.55,0.0001465,2]
[334709772,1723494639518,-500.0,0.0001465,2]
[334709773,1723494639527,-500.0,0.0001465,2]
[334709774,1723494639537,-500.0,0.0001465,2]
[334709775,1723494639547,-500.0,0.0001465,2]
[334709776,1723494639556,-500.0,0.0001465,2]
[334709777,1723494639565,-1054.52,0.0001465,2]
[334709778,1723494639574,-500.0,0.0001465,2]
[334709779,1723494639584,-2806.86,0.0001465,2]
[334709780,1723494639593,-1274.06,0.0001465,2]
[334709781,1723494639602,-1509.55,0.0001465,2]
[334709782,1723494639611,-4774.25,0.0001465,2]
[334709783,1723494639621,-1343.68,0.0001465,2]
[334709784,1723494639632,-500.0,0.0001465,2]
[334709785,1723494639641,-1736.36,0.0001465,2]
[334709786,1723494639651,-521.18192109,0.0001465,2]
[334709787,1723494639660,-1252.79,0.0001465,2]
[334709788,1723494639669,-500.0,0.0001465,2]
[334709789,1723494639678,-500.0,0.0001465,2]
[334709790,1723494639688,-500.0,0.0001465,2]
[334709791,1723494639697,-500.0,0.0001465,2]
[334709792,1723494639706,-500.0,0.0001465,2]
[334709793,1723494639715,-500.0,0.0001465,2]
[334709794,1723494639724,-1677.36,0.0001465,2]
[334709795,1723494639734,-519.93,0.0001465,2]
[334709796,1723494639743,-500.0,0.0001465,2]
[334709797,1723494639753,-500.0,0.0001465,2]
[334709798,1723494639762,-1745.55,0.0001465,2]
[334709799,1723494639771,-804.82,0.0001465,2]
[334709800,1723494639781,-980.34,0.0001465,2]
[334709801,1723494639790,-500.0,0.0001465,2]
[334709802,1723494639799,-500.0,0.0001465,2]
[334709803,1723494639808,-790.15,0.0001465,2]
[334709804,1723494639818,-500.0,0.0001465,2]
[334709805,1723494639827,-500.0,0.0001465,2]
[334709806,1723494639836,-1096.22,0.0001465,2]
[334709807,1723494639845,-8491.66,0.0001465,2]
[334709808,1723494639854,-500.0,0.0001465,2]
[334709809,1723494639864,-535.90743817,0.00014651,2]
[334709810,1723494639873,-2688.02,0.00014651,2]
[334709811,1723494639882,-1512.69,0.00014651,2]
[334709812,1723494639892,-1778.52,0.00014651,2]
[334709813,1723494639901,-178.58257224,0.00014651,2]
[334709814,1723494639911,-930.33,0.00014651,2]
[334709815,1723494639921,-1679.42,0.00014651,2]
[334709816,1723494639930,-960.34,0.00014651,2]
[334709817,1723494639939,-500.0,0.00014651,2]
[334709818,1723494639949,-722.96,0.00014651,2]
[334709819,1723494639958,-4476.45,0.00014651,2]
[334709820,1723494639967,-500.0,0.00014651,2]
[334709821,1723494639977,-500.0,0.00014651,2]
[334709822,1723494639986,-500.0,0.00014651,2]
[334709823,1723494639995,-1717.38,0.00014651,2]
[334709824,1723494640005,-500.0,0.00014651,2]
[334709825,1723494640014,-265.18379765,0.00014651,2]
[334709827,1723494640023,-776.23,0.00014651,2]
[334709828,1723494640032,-729.68,0.00014651,2]
[334709829,1723494640041,-500.0,0.00014651,2]
[334709830,1723494640051,-922.83,0.00014651,2]
[334709831,1723494640061,-804.82,0.00014651,2]
[334709832,1723494640071,-804.82,0.00014651,2]
[334709833,1723494640080,-500.0,0.00014651,2]
[334709834,1723494640090,-1616.29,0.00014651,2]
[334709835,1723494640099,-500.0,0.00014651,2]
[334709836,1723494640108,-500.0,0.00014651,2]
[334709837,1723494640117,-500.0,0.00014651,2]
[334709838,1723494640127,-2636.72,0.00014651,2]
[334709839,1723494640138,-564.92,0.00014651,2]
[334709841,1723494640148,-3828.76,0.00014651,2]
[334709842,1723494640157,-5441.69174231,0.00014651,2]
[334709843,1723494640167,-804.82,0.0001466,2]
[334709844,1723494640177,-804.82,0.0001466,2]
[334709845,1723494640186,-500.0,0.00014661,2]
[334709846,1723494640197,-500.0,0.00014661,2]
[334709847,1723494640210,-500.0,0.00014661,2]
[334709848,1723494640222,-500.0,0.00014661,2]
[334709849,1723494640232,-500.0,0.00014661,2]
[334709850,1723494640241,-500.0,0.00014661,2]
[334709851,1723494640251,-633.81,0.00014661,2]
[334709853,1723494640261,-500.0,0.00014661,2]
[334709855,1723494640273,-500.0,0.00014661,2]
[334709856,1723494640286,-500.0,0.00014661,2]
[334709857,1723494640296,-500.0,0.00014661,2]
[334709858,1723494640307,-500.0,0.00014661,2]
[334709861,1723494640458,-500.0,0.00014661,2]
[334709862,1723494640469,-500.0,0.00014661,2]
[334709863,1723494640479,-500.0,0.00014661,2]
[334709865,1723494640489,-500.0,0.00014661,2]
[334709867,1723494640500,-500.0,0.00014661,2]
[334709868,1723494640510,-500.0,0.00014661,2]
[334709869,1723494640520,-500.0,0.00014661,2]
[334709870,1723494640531,-501.7475152,0.00014661,2]
[334709871,1723494640542,-501.48143873,0.00014661,2]
[334709872,1723494640552,-844.98,0.00014661,2]
[334709873,1723494640562,-500.0,0.00014661,2]
[334709874,1723494640572,-500.0,0.00014661,2]
[334709875,1723494640582,-500.0,0.00014661,2]
[334709876,1723494640592,-500.0,0.00014661,2]
[334709877,1723494640602,-500.0,0.00014661,2]
[334709878,1723494640611,-885.07,0.00014661,2]
[334709879,1723494640621,-500.0,0.00014661,2]
[334709880,1723494640630,-500.0,0.00014661,2]
[334709881,1723494640640,-597.27327732,0.00014661,2]
[334709882,1723494640649,-500.0,0.00014661,2]
[334709883,1723494640659,-500.0,0.00014661,2]
[334709884,1723494640668,-500.0,0.00014661,2]
[334709885,1723494640678,-343.6593187,0.00014661,2]
[334709886,1723494640688,-644.69,0.00014661,2]
[334709887,1723494640698,-500.0,0.00014661,2]
[334709888,1723494640707,-502.97989153,0.00014661,2]
[334709889,1723494640717,-500.0,0.00014661,2]
[334709890,1723494640726,-500.0,0.00014661,2]
[334709891,1723494640735,-500.0,0.00014661,2]
[334709892,1723494640745,-500.0,0.00014661,2]
[334709893,1723494640757,-500.0,0.00014661,2]
[334709894,1723494640768,-504.46139654,0.00014661,2]
[334709895,1723494640778,-500.0,0.00014661,2]
[334709896,1723494640788,-500.0,0.00014661,2]
[334709897,1723494640798,-500.0,0.00014661,2]
[334709898,1723494640809,-509.88815978,0.00014661,2]
[334709899,1723494640819,-772.92,0.00014661,2]
[334709900,1723494640828,-500.0,0.00014661,2]
[334709901,1723494640837,-500.0,0.00014661,2]
[334709902,1723494640848,-500.0,0.00014661,2]
[334709903,1723494640858,-500.0,0.00014661,2]
[334709904,1723494640869,-660.92,0.00014661,2]
[334709905,1723494640878,-500.0,0.00014661,2]
[334709906,1723494640898,-507.03722635,0.00014661,2]
[334709907,1723494640908,-500.0,0.00014661,2]
[334709908,1723494640918,-500.0,0.00014661,2]
[334709909,1723494640929,-500.0,0.00014661,2]
[334709910,1723494640940,-500.0,0.00014661,2]
[334709911,1723494640953,-502.30415664,0.00014661,2]
[334709912,1723494640963,-1209.57,0.00014661,2]
[334709913,1723494640973,-216.54986318,0.00014661,2]
[334709914,1723494640983,-500.0,0.00014661,2]
[334709915,1723494640992,-500.0,0.00014661,2]
[334709916,1723494641002,-564.48,0.00014661,2]
[334709917,1723494641011,-500.0,0.00014661,2]
[334709918,1723494641020,-503.60825939,0.00014661,2]
[334709919,1723494641030,-500.0,0.00014661,2]
[334709920,1723494641040,-500.0,0.00014661,2]
[334709921,1723494641050,-503.79529579,0.00014661,2]
[334709922,1723494641059,-500.0,0.00014661,2]
[334709923,1723494641067,-500.0,0.00014661,2]
[334709924,1723494641076,-501.90565031,0.00014661,2]
[334709925,1723494641086,-523.71,0.00014661,2]
[334709926,1723494641096,-500.0,0.00014661,2]
[334709927,1723494641106,-500.0,0.00014661,2]
[334709928,1723494641116,-1023.33,0.00014661,2]
[334709929,1723494641125,-500.0,0.00014661,2]
[334709930,1723494641140,-500.0,0.00014661,2]
[334709931,1723494641149,-1032.32,0.00014661,2]
[334709932,1723494641165,-500.0,0.00014661,2]
[334709933,1723494641175,-501.52233401,0.00014661,2]
[334709934,1723494641186,-1945.96,0.00014661,2]
[334709935,1723494641196,-500.0,0.00014661,2]
[334709936,1723494641207,-500.0,0.00014661,2]
[334709937,1723494641226,-500.0,0.00014661,2]
[334709938,1723494641243,-500.0,0.00014661,2]
[334709939,1723494641254,-500.0,0.00014661,2]
[334709940,1723494641264,-3222.79,0.00014661,2]
[334709941,1723494641274,-500.0,0.00014661,2]
[334709942,1723494641283,-503.41653541,0.00014661,2]
[334709943,1723494641293,-500.0,0.00014661,2]
[334709944,1723494641303,-500.0,0.00014661,2]
[334709945,1723494641313,-500.0,0.00014661,2]
[334709946,1723494641323,-500.0,0.00014661,2]
[334709947,1723494641332,-500.0,0.00014661,2]
[334709948,1723494641341,-500.0,0.00014661,2]
[334709949,1723494641351,-1584.03,0.00014661,2]
[334709950,1723494641360,-500.0,0.00014661,2]
[334709951,1723494641370,-502.6501975,0.00014661,2]
[334709952,1723494641379,-503.67086892,0.00014661,2]
[334709953,1723494641390,-838.66,0.00014661,2]
[334709954,1723494641399,-1007.48,0.00014661,2]
[334709955,1723494641409,-500.0,0.00014661,2]
[334709956,1723494641418,-500.0,0.00014661,2]
[334709957,1723494641427,-500.0,0.00014661,2]
[334709958,1723494641437,-804.82,0.00014661,2]
[334709959,1723494641447,-500.0,0.00014661,2]
[334709960,1723494641456,-535.01,0.00014661,2]
[334709961,1723494641466,-500.0,0.00014661,2]
[334709962,1723494641476,-500.0,0.00014661,2]
[334709963,1723494641485,-501.98845617,0.00014661,2]
[334709964,1723494641494,-500.0,0.00014661,2]
[334709965,1723494641503,-506.19468139,0.00014661,2]
[334709966,1723494641512,-500.0,0.00014661,2]
[334709967,1723494641521,-500.0,0.00014661,2]
[334709968,1723494641531,-500.0,0.00014661,2]
[334709969,1723494641540,-500.0,0.00014661,2]
[334709970,1723494641550,-500.0,0.00014661,2]
[334709971,1723494641559,-505.87900514,0.00014661,2]
[334709972,1723494641568,-500.0,0.00014661,2]
[334709973,1723494641578,-5441.69174231,0.00014669,2]
[334709974,1723494641587,-2000.0,0.00014679,2]
[334709975,1723494641596,-1176.96531835,0.00014679,2]
[334709976,1723494641605,-804.82,0.00014679,2]
[334709977,1723494641615,-804.82,0.00014679,2]
[334709978,1723494641624,-804.82,0.00014679,2]
[334709979,1723494641635,-1092.59843641,0.0001469,2]
[334709980,1723494641644,-804.82,0.0001469,2]
[334709981,1723494641653,-34360.00038698,0.0001469,2]
[334709982,1723494641663,-7008.86868586,0.00014691,2]
[334709983,1723494641672,-1612.28857669,0.00014691,2]
[334709984,1723494641682,-2710.71989764,0.00014691,2]
[334709985,1723494641691,-2164.74871652,0.00014691,2]
[334709986,1723494641701,-3090.72018399,0.00014691,2]
[334709987,1723494641710,-1384.31526916,0.00014691,2]
[334709988,1723494641719,-1164.02523181,0.00014691,2]
[334709989,1723494641729,-1765.28037207,0.00014691,2]
[334709990,1723494641740,-1993.66421949,0.00014691,2]
[334709991,1723494641750,-9646.91198191,0.00014691,2]
[334709992,1723494641759,-150.112235,0.000147,2]
[334709993,1723494641769,-368.0507281,0.000147,2]
[334709994,1723494641778,-288.3473829,0.000147,2]
[334709995,1723494641787,-294.7248868,0.000147,2]
[334709996,1723494641797,-804.82,0.00014747,2]
[334709997,1723494641807,-804.82,0.00014747,2]
[334709998,1723494641817,-804.82,0.00014747,2]
[334709999,1723494641826,-5441.69174231,0.00014748,2]
[334710000,1723494641835,-804.82,0.00014757,2]
[334710001,1723494641845,-500.0,0.00014758,2]
[334710002,1723494641854,-876.77,0.00014758,2]
[334710003,1723494641863,-715.92,0.00014758,2]
[334710004,1723494641873,-500.0,0.00014758,2]
[334710005,1723494641882,-545.32,0.00014758,2]
[334710006,1723494641892,-702.43,0.00014758,2]
[334710007,1723494641901,-694.33,0.00014758,2]
[334710008,1723494641911,-500.0,0.00014758,2]
[334710009,1723494641920,-609.43,0.00014758,2]
[334710010,1723494641929,-500.0,0.00014758,2]
[334710011,1723494641938,-500.0,0.00014758,2]
[334710012,1723494641947,-500.0,0.00014758,2]
[334710013,1723494641957,-500.0,0.00014758,2]
[334710014,1723494641966,-500.0,0.00014758,2]
[334710015,1723494641975,-500.0,0.00014758,2]
[334710016,1723494641985,-1048.48,0.00014758,2]
[334710017,1723494641994,-500.0,0.00014758,2]
[334710018,1723494642003,-500.0,0.00014758,2]
[334710019,1723494642012,-538.04,0.00014758,2]
[334710020,1723494642021,-500.0,0.00014758,2]
[334710021,1723494642031,-528.28,0.00014758,2]
[334710022,1723494642039,-500.0,0.00014758,2]
[334710023,1723494642049,-500.0,0.00014758,2]
[334710024,1723494642058,-703.76,0.00014758,2]
[334710025,1723494642067,-500.0,0.00014758,2]
[334710026,1723494642076,-1082.26,0.00014758,2]
[334710027,1723494642085,-997.9,0.00014758,2]
[334710028,1723494642094,-1167.99,0.00014758,2]
[334710029,1723494642104,-500.0,0.00014758,2]
[334710030,1723494642113,-500.0,0.00014758,2]
[334710031,1723494642122,-561.56,0.00014758,2]
[334710032,1723494642131,-6203.66,0.00014758,2]
[334710033,1723494642141,-1225.37,0.00014758,2]
[334710034,1723494642151,-1396.62,0.00014758,2]
[334710035,1723494642160,-707.97,0.00014758,2]
[334710036,1723494642169,-1250.36,0.00014758,2]
[334710037,1723494642178,-804.82,0.00014758,2]
[334710038,1723494642187,-804.82,0.00014758,2]
[334710039,1723494642197,-804.82,0.00014758,2]
[334710040,1723494642210,-500.0,0.00014758,2]
[334710041,1723494642219,-1880.5,0.00014758,2]
[334710042,1723494642228,-791.23,0.00014758,2]
[334710043,1723494642238,-1097.33,0.00014758,2]
[334710044,1723494642248,-500.0,0.0001476,2]
[334710045,1723494642257,-500.0,0.0001476,2]
[334710046,1723494642266,-500.0,0.0001476,2]
[334710047,1723494642276,-500.0,0.0001476,2]
[334710048,1723494642285,-500.0,0.0001476,2]
[334710049,1723494642294,-500.0,0.0001476,2]
[334710050,1723494642304,-500.0,0.0001476,2]
[334710051,1723494642315,-500.0,0.0001476,2]
[334710052,1723494642327,-500.0,0.0001476,2]
[334710053,1723494642338,-500.0,0.0001476,2]
[334710054,1723494642348,-500.0,0.0001476,2]
[334710055,1723494642358,-500.0,0.0001476,2]
[334710056,1723494642368,-1367.7,0.0001476,2]
[334710057,1723494642378,-526.29,0.0001476,2]
[334710058,1723494642392,-500.0,0.0001476,2]
[334710059,1723494642402,-500.0,0.0001476,2]
[334710060,1723494642411,-500.41,0.0001476,2]
[334710061,1723494642422,-500.0,0.0001476,2]
[334710062,1723494642432,-893.59,0.0001476,2]
[334710063,1723494642441,-804.82,0.00014769,2]
[334710064,1723494642450,-161.84089503,0.00014814,2]
[334710065,1723494642461,-10883.3834846,0.00014855,2]
[334710066,1723494642471,-804.82,0.00014864,2]
[334710067,1723494642481,-804.82,0.00014864,2]
[334710068,1723494642491,-804.82,0.00014864,2]
[334710069,1723494642500,-804.82,0.00014864,2]
[334710070,1723494642510,-804.82,0.00014864,2]
[334710071,1723494642519,-804.9,0.00014864,2]
[334710072,1723494642529,-540.99826109,0.00014865,2]
[334710073,1723494642538,-500.0,0.00014865,2]
[334710074,1723494642547,-512.68322596,0.00014865,2]
[334710075,1723494642558,-500.0,0.00014865,2]
[334710076,1723494642567,-504.78252744,0.00014865,2]
[334710077,1723494642577,-500.0,0.00014865,2]
[334710078,1723494642586,-500.0,0.00014865,2]
[334710079,1723494642595,-500.0,0.00014865,2]
[334710080,1723494642605,-503.91882432,0.00014865,2]
[334710081,1723494642615,-502.38200505,0.00014865,2]
[334710082,1723494642624,-500.0,0.00014865,2]
[334710083,1723494642635,-500.0,0.00014865,2]
[334710084,1723494642644,-500.0,0.00014865,2]
[334710085,1723494642653,-500.0,0.00014865,2]
[334710086,1723494642662,-500.0,0.00014865,2]
[334710087,1723494642672,-500.0,0.00014865,2]
[334710088,1723494642681,-504.21239175,0.00014865,2]
[334710089,1723494642691,-503.3674401,0.00014865,2]
[334710090,1723494642700,-508.82790382,0.00014865,2]
[334710091,1723494642709,-504.68628775,0.00014865,2]
[334710092,1723494642719,-500.0,0.00014865,2]
[334710093,1723494642728,-509.59232505,0.00014865,2]
[334710094,1723494642738,-500.0,0.00014865,2]
[334710095,1723494642747,-500.0,0.00014865,2]
[334710096,1723494642756,-500.0,0.00014865,2]
[334710097,1723494642765,-500.0,0.00014865,2]
[334710098,1723494642774,-500.0,0.00014865,2]
[334710099,1723494642784,-500.0,0.00014865,2]
[334710100,1723494642793,-630.11,0.00014865,2]
[334710101,1723494642803,-500.0,0.00014865,2]
[334710102,1723494642811,-500.0,0.00014865,2]
[334710103,1723494642821,-2205.92,0.00014865,2]
[334710104,1723494642830,-510.44,0.00014865,2]
[334710107,1723494642840,-500.0,0.00014865,2]
[334710110,1723494642849,-530.83196321,0.00014865,2]
[334710112,1723494642859,-500.0,0.00014865,2]
[334710114,1723494642868,-500.0,0.00014865,2]
[334710115,1723494642878,-500.0,0.00014865,2]
[334710116,1723494642890,-500.0,0.00014865,2]
[334710117,1723494642900,-500.0,0.00014865,2]
[334710118,1723494642908,-500.0,0.00014865,2]
[334710119,1723494642918,-500.0,0.00014865,2]
[334710120,1723494642927,-500.0,0.00014865,2]
[334710121,1723494642935,-500.0,0.00014865,2]
[334710122,1723494642945,-500.0,0.00014865,2]
[334710123,1723494642954,-500.0,0.00014865,2]
[334710124,1723494642963,-583.14,0.00014865,2]
[334710125,1723494642972,-500.0,0.00014914,2]
[334710126,1723494642981,-1322.88,0.00014914,2]
[334710127,1723494642990,-804.97,0.00014914,2]
[334710128,1723494642999,-5441.69174231,0.00014914,2]
[334710129,1723494643008,-500.0,0.00014915,2]
[334710130,1723494643017,-2325.05,0.00014915,2]
[334710131,1723494643026,-8081.26,0.00014915,2]
[334710132,1723494643035,-881.04,0.00014915,2]
[334710133,1723494643044,-1430.3,0.00014915,2]
[334710134,1723494643053,-500.0,0.00014924,2]
[334710136,1723494643062,-704.46,0.00014924,2]
[334710139,1723494643072,-500.0,0.00014924,2]
[334710141,1723494643081,-626.51,0.00014924,2]
[334710142,1723494643090,-500.0,0.00014924,2]
[334710143,1723494643100,-761.33,0.00014924,2]
[334710144,1723494643109,-500.0,0.00014924,2]
[334710145,1723494643118,-907.73,0.00014924,2]
[334710147,1723494643127,-500.0,0.00014924,2]
[334710149,1723494643138,-500.0,0.00014924,2]
[334710151,1723494643147,-500.0,0.00014924,2]
[334710152,1723494643156,-500.0,0.00014924,2]
[334710153,1723494643165,-500.0,0.00014924,2]
[334710154,1723494643174,-730.93,0.00014924,2]
[334710155,1723494643184,-580.79,0.00014924,2]
[334710157,1723494643194,-984.2,0.00014924,2]
[334710158,1723494643207,-953.55,0.00014924,2]
[334710159,1723494643218,-500.0,0.00014924,2]
[334710160,1723494643228,-500.0,0.00014924,2]
[334710161,1723494643240,-500.0,0.00014924,2]
[334710162,1723494643252,-500.0,0.00014924,2]
[334710163,1723494643262,-500.0,0.00014924,2]
[334710164,1723494643272,-1054.52,0.00014924,2]
[334710165,1723494643285,-500.0,0.00014924,2]
[334710166,1723494643297,-2806.86,0.00014924,2]
[334710167,1723494643308,-1274.06,0.00014924,2]
[334710168,1723494643319,-1509.55,0.00014924,2]
[334710169,1723494643329,-4774.25,0.00014924,2]
[334710170,1723494643341,-1343.68,0.00014924,2]
[334710172,1723494643352,-500.0,0.00014924,2]
[334710174,1723494643361,-1736.36,0.00014924,2]
[334710176,1723494643371,-1252.79,0.00014924,2]
[334710177,1723494643381,-500.0,0.00014924,2]
[334710179,1723494643393,-500.0,0.00014924,2]
[334710181,1723494643402,-500.0,0.00014924,2]
[334710182,1723494643411,-500.0,0.00014924,2]
[334710184,1723494643420,-500.0,0.00014924,2]
[334710185,1723494643430,-1677.36,0.00014924,2]
[334710187,1723494643439,-519.93,0.00014924,2]
[334710189,1723494643448,-500.0,0.00014924,2]
[334710191,1723494643457,-500.0,0.00014924,2]
[334710192,1723494643466,-1745.55,0.00014924,2]
[334710193,1723494643475,-980.34,0.00014924,2]
[334710195,1723494643485,-500.0,0.00014924,2]
[334710197,1723494643497,-500.0,0.00014924,2]
[334710198,1723494643509,-790.15,0.00014924,2]
[334710199,1723494643520,-500.0,0.00014924,2]
[334710200,1723494643529,-1096.22,0.00014924,2]
[334710201,1723494643540,-8491.66,0.00014924,2]
[334710202,1723494643550,-506.99037355,0.00014924,2]
[334710203,1723494643560,-152.413792,0.00014925,2]
[334710204,1723494643571,-152.413792,0.00014925,2]
[334710205,1723494643582,-2688.02,0.00014925,2]
[334710206,1723494643591,-1512.69,0.00014925,2]
[334710207,1723494643602,-1778.52,0.00014925,2]
[334710208,1723494643614,-237.675017,0.00014925,2]
[334710209,1723494643626,-237.675017,0.00014925,2]
[334710210,1723494643639,-930.33,0.00014925,2]
[334710211,1723494643651,-1679.42,0.00014925,2]
[334710213,1723494643662,-151.0,0.00014925,2]
[334710214,1723494643673,-151.0,0.00014925,2]
[334710215,1723494643682,-960.34,0.00014925,2]
[334710216,1723494643694,-500.0,0.00014925,2]
[334710217,1723494643704,-722.96,0.00014925,2]
[334710218,1723494643713,-4476.45,0.00014925,2]
[334710219,1723494643722,-500.0,0.00014925,2]
[334710220,1723494643731,-500.0,0.00014925,2]
[334710221,1723494643740,-500.0,0.00014925,2]
[334710222,1723494643749,-1717.38,0.00014925,2]
[334710223,1723494643758,-500.0,0.00014925,2]
[334710224,1723494643767,-776.23,0.00014925,2]
[334710225,1723494643777,-729.68,0.00014925,2]
[334710226,1723494643786,-500.0,0.00014925,2]
[334710227,1723494643795,-922.83,0.00014925,2]
[334710228,1723494643804,-500.0,0.00014925,2]
[334710229,1723494643814,-1616.29,0.00014925,2]
[334710230,1723494643823,-500.0,0.00014925,2]
[334710231,1723494643832,-2636.72,0.00014925,2]
[334710232,1723494643842,-564.92,0.00014925,2]
[334710233,1723494643851,-3828.76,0.00014925,2]